[Event "Titled Tuesday Blitz April 11 Late 2023"]
[White "Melkumyan, Hrant"]
[Black "Mustafayev, Farid"]
[WhiteFideId "13302485"]
[BlackFideId "13408771"]
[WhiteElo "2604"]
[BlackElo "2237"]
[Result "1-0"]
[Round "03"]
[TimeControl "180+2"]
[Date "2023.04.11"]
[WhiteClock "0:00:02"]
[BlackClock "0:00:01"]

1. d4 {[%clk 0:02:56]}  d5 {[%clk 0:02:56]} 2. c4 {[%clk 0:02:55]}  dxc4 {[%clk 0:02:57]} 3. e3 {[%clk 0:02:55]}  Nf6 {[%clk 0:02:57]} 4. Bxc4 {[%clk 0:02:55]}  e6 {[%clk 0:02:57]} 5. Nf3 {[%clk 0:02:55]}  Be7 {[%clk 0:02:57]} 6. O-O {[%clk 0:02:55]}  O-O {[%clk 0:02:57]} 7. Qe2 {[%clk 0:02:49]}  c5 {[%clk 0:02:55]} 8. Rd1 {[%clk 0:02:46]}  Qc7 {[%clk 0:02:49]} 9. b3 {[%clk 0:02:41]}  Nc6 {[%clk 0:02:46]} 10. Nc3 {[%clk 0:02:32]}  a6 {[%clk 0:02:43]} 11. a4 {[%clk 0:02:29]}  Na5 {[%clk 0:02:33]} 12. d5 {[%clk 0:02:24]}  Nxc4 {[%clk 0:02:29]} 13. bxc4 {[%clk 0:02:23]}  exd5 {[%clk 0:02:18]} 14. cxd5 {[%clk 0:02:23]}  Bg4 {[%clk 0:02:16]} 15. h3 {[%clk 0:02:20]}  Bh5 {[%clk 0:02:15]} 16. e4 {[%clk 0:02:19]}  Bd6 {[%clk 0:01:53]} 17. Bg5 {[%clk 0:02:12]}  Nd7 {[%clk 0:01:42]} 18. g4 {[%clk 0:02:03]}  Bg6 {[%clk 0:01:42]} 19. Re1 {[%clk 0:02:01]}  h6 {[%clk 0:01:41]} 20. Bd2 {[%clk 0:01:55]}  Rfe8 {[%clk 0:01:38]} 21. Kg2 {[%clk 0:01:47]}  Ne5 {[%clk 0:01:25]} 22. Nxe5 {[%clk 0:01:45]}  Bxe5 {[%clk 0:01:26]} 23. f3 {[%clk 0:01:46]}  Bd4 {[%clk 0:01:23]} 24. Rac1 {[%clk 0:01:41]}  f5 {[%clk 0:01:23]} 25. gxf5 {[%clk 0:01:34]}  Bxf5 {[%clk 0:01:23]} 26. Be3 {[%clk 0:01:28]}  Bxc3 {[%clk 0:01:08]} 27. Rxc3 {[%clk 0:01:27]}  Rxe4 {[%clk 0:00:56]} 28. fxe4 {[%clk 0:01:15]}  Bxe4+ {[%clk 0:00:57]} 29. Kf1 {[%clk 0:01:16]}  Rf8+ {[%clk 0:00:43]} 30. Bf2 {[%clk 0:00:42]}  Qh2 {[%clk 0:00:42]} 31. Qe3 {[%clk 0:00:42]}  Re8 {[%clk 0:00:27]} 32. Qg3 {[%clk 0:00:31]}  Qh1+ {[%clk 0:00:27]} 33. Bg1 {[%clk 0:00:29]}  Bg2+ {[%clk 0:00:25]} 34. Kf2 {[%clk 0:00:20]}  Rxe1 {[%clk 0:00:22]} 35. Kxe1 {[%clk 0:00:20]}  Qxg1+ {[%clk 0:00:22]} 36. Ke2 {[%clk 0:00:21]}  Bf1+ {[%clk 0:00:21]} 37. Ke1 {[%clk 0:00:20]}  Bg2+ {[%clk 0:00:20]} 38. Kd2 {[%clk 0:00:18]}  Qd4+ {[%clk 0:00:18]} 39. Rd3 {[%clk 0:00:18]}  Qb2+ {[%clk 0:00:16]} 40. Ke1 {[%clk 0:00:19]}  c4 {[%clk 0:00:15]} 41. Rd2 {[%clk 0:00:11]}  Qb1+ {[%clk 0:00:15]} 42. Rd1 {[%clk 0:00:12]}  Qe4+ {[%clk 0:00:15]} 43. Kf2 {[%clk 0:00:12]}  Qc2+ {[%clk 0:00:13]} 44. Ke1 {[%clk 0:00:13]}  Qe4+ {[%clk 0:00:12]} 45. Kf2 {[%clk 0:00:06]}  c3 {[%clk 0:00:12]} 46. Qxc3 {[%clk 0:00:05]}  Bh1 {[%clk 0:00:04]} 47. d6 {[%clk 0:00:04]}  Qg2+ {[%clk 0:00:04]} 48. Ke3 {[%clk 0:00:05]}  Qf3+ {[%clk 0:00:05]} 49. Kd2 {[%clk 0:00:05]}  Qf4+ {[%clk 0:00:05]} 50. Kc2 {[%clk 0:00:06]}  Qxa4+ {[%clk 0:00:05]} 51. Kd2 {[%clk 0:00:06]}  Bf3 {[%clk 0:00:04]} 52. Rg1 {[%clk 0:00:03]}  Qa2+ {[%clk 0:00:02]} 53. Ke3 {[%clk 0:00:03]}  Qf7 {[%clk 0:00:02]} 54. Rxg7+ {[%clk 0:00:02]}  Kf8 {[%clk 0:00:01]} 55. Rxf7+ {[%clk 0:00:02]} 1-0


[Site "https://www.chess.com"]

[Event "Titled Tuesday Blitz April 11 Late 2023"]
[White "Kleiman, Jake"]
[Black "Samsonkin, Artiom"]
[WhiteFideId "2020041"]
[BlackFideId "13503111"]
[WhiteElo "2399"]
[BlackElo "2524"]
[Result "1-0"]
[Round "03"]
[TimeControl "180+2"]
[Date "2023.04.11"]
[WhiteClock "0:00:14"]
[BlackClock "0:00:02"]

1. e4 {[%clk 0:03:00]}  e6 {[%clk 0:02:45]} 2. d4 {[%clk 0:03:00]}  d5 {[%clk 0:02:46]} 3. Nd2 {[%clk 0:03:00]}  c5 {[%clk 0:02:44]} 4. exd5 {[%clk 0:03:00]}  Qxd5 {[%clk 0:02:44]} 5. Ngf3 {[%clk 0:03:01]}  cxd4 {[%clk 0:02:43]} 6. Bc4 {[%clk 0:03:02]}  Qd6 {[%clk 0:02:43]} 7. O-O {[%clk 0:03:00]}  Nf6 {[%clk 0:02:44]} 8. Nb3 {[%clk 0:03:00]}  a6 {[%clk 0:02:40]} 9. a4 {[%clk 0:02:58]}  Qc7 {[%clk 0:02:36]} 10. Qe2 {[%clk 0:02:57]}  Bd6 {[%clk 0:02:16]} 11. Bg5 {[%clk 0:02:53]}  Be7 {[%clk 0:02:09]} 12. Nbxd4 {[%clk 0:02:51]}  O-O {[%clk 0:02:08]} 13. Rfe1 {[%clk 0:02:52]}  h6 {[%clk 0:02:02]} 14. Bh4 {[%clk 0:02:50]}  Nbd7 {[%clk 0:01:24]} 15. Nxe6 {[%clk 0:02:47]}  fxe6 {[%clk 0:01:23]} 16. Bxe6+ {[%clk 0:02:37]}  Kh8 {[%clk 0:01:16]} 17. Bxd7 {[%clk 0:02:38]}  Bxd7 {[%clk 0:01:12]} 18. Qxe7 {[%clk 0:02:38]}  Rae8 {[%clk 0:01:10]} 19. Qb4 {[%clk 0:02:32]}  Qxc2 {[%clk 0:00:54]} 20. Rxe8 {[%clk 0:02:21]}  Rxe8 {[%clk 0:00:55]} 21. Bxf6 {[%clk 0:02:20]}  gxf6 {[%clk 0:00:55]} 22. Qxb7 {[%clk 0:02:15]}  Bc6 {[%clk 0:00:24]} 23. Qxa6 {[%clk 0:02:01]}  Qxb2 {[%clk 0:00:20]} 24. Re1 {[%clk 0:02:00]}  Rxe1+ {[%clk 0:00:18]} 25. Nxe1 {[%clk 0:02:00]}  Qc1 {[%clk 0:00:19]} 26. Qe2 {[%clk 0:01:32]}  Bxa4 {[%clk 0:00:20]} 27. h3 {[%clk 0:01:29]}  Bc6 {[%clk 0:00:18]} 28. Qe6 {[%clk 0:01:20]}  Kg7 {[%clk 0:00:16]} 29. Qe7+ {[%clk 0:01:19]}  Kg6 {[%clk 0:00:17]} 30. Qe2 {[%clk 0:01:15]}  Qb1 {[%clk 0:00:12]} 31. Kh2 {[%clk 0:01:12]}  Be4 {[%clk 0:00:11]} 32. Qe3 {[%clk 0:01:08]}  h5 {[%clk 0:00:08]} 33. h4 {[%clk 0:00:56]}  Kf7 {[%clk 0:00:08]} 34. Qd2 {[%clk 0:00:52]}  Qb8+ {[%clk 0:00:08]} 35. Kg1 {[%clk 0:00:51]}  Qb1 {[%clk 0:00:09]} 36. f3 {[%clk 0:00:50]}  Bf5 {[%clk 0:00:07]} 37. Kf2 {[%clk 0:00:49]}  Qb6+ {[%clk 0:00:07]} 38. Kg3 {[%clk 0:00:46]}  Qc7+ {[%clk 0:00:06]} 39. Qf4 {[%clk 0:00:44]}  Qc5 {[%clk 0:00:04]} 40. Kh2 {[%clk 0:00:40]}  Kg6 {[%clk 0:00:03]} 41. g3 {[%clk 0:00:35]}  Qf2+ {[%clk 0:00:03]} 42. Ng2 {[%clk 0:00:35]}  Qc2 {[%clk 0:00:03]} 43. Kg1 {[%clk 0:00:32]}  Bd3 {[%clk 0:00:04]} 44. Qe3 {[%clk 0:00:27]}  Qd1+ {[%clk 0:00:04]} 45. Kh2 {[%clk 0:00:25]}  Qc2 {[%clk 0:00:04]} 46. Qe1 {[%clk 0:00:23]}  Bc4 {[%clk 0:00:03]} 47. g4 {[%clk 0:00:20]}  Bd5 {[%clk 0:00:02]} 48. Kg3 {[%clk 0:00:19]}  Qc7+ {[%clk 0:00:02]} 49. Nf4+ {[%clk 0:00:19]}  Kf7 {[%clk 0:00:03]} 50. gxh5 {[%clk 0:00:19]}  Bc6 {[%clk 0:00:02]} 51. Qe3 {[%clk 0:00:19]}  Qe5 {[%clk 0:00:02]} 52. Qxe5 {[%clk 0:00:17]}  fxe5 {[%clk 0:00:03]} 53. Ng6 {[%clk 0:00:17]}  Kf6 {[%clk 0:00:02]} 54. Nf8 {[%clk 0:00:15]}  Be8 {[%clk 0:00:02]} 55. Kg4 {[%clk 0:00:14]} 1-0


[Site "https://www.chess.com"]

[Event "Titled Tuesday Blitz April 11 Late 2023"]
[White "Baskakov, Egor"]
[Black "Mortazavi, Ali"]
[WhiteFideId "24197866"]
[BlackFideId "401323"]
[WhiteElo "2212"]
[BlackElo "2339"]
[Result "0-1"]
[Round "03"]
[TimeControl "180+2"]
[Date "2023.04.11"]
[WhiteClock "0:00:29"]
[BlackClock "0:00:12"]

1. e4 {[%clk 0:03:00]}  c6 {[%clk 0:03:00]} 2. d4 {[%clk 0:03:00]}  d5 {[%clk 0:03:00]} 3. e5 {[%clk 0:03:00]}  Bf5 {[%clk 0:03:00]} 4. Ne2 {[%clk 0:03:00]}  e6 {[%clk 0:02:55]} 5. Ng3 {[%clk 0:03:00]}  Bg6 {[%clk 0:02:55]} 6. h4 {[%clk 0:03:01]}  h6 {[%clk 0:02:54]} 7. h5 {[%clk 0:03:01]}  Bh7 {[%clk 0:02:54]} 8. Bd3 {[%clk 0:03:01]}  Bxd3 {[%clk 0:02:55]} 9. cxd3 {[%clk 0:03:02]}  Qb6 {[%clk 0:02:54]} 10. Be3 {[%clk 0:02:59]}  Qxb2 {[%clk 0:02:30]} 11. Nd2 {[%clk 0:02:59]}  Qa3 {[%clk 0:02:30]} 12. O-O {[%clk 0:02:59]}  Qxd3 {[%clk 0:02:25]} 13. Rb1 {[%clk 0:02:57]}  b6 {[%clk 0:02:20]} 14. Rb3 {[%clk 0:02:57]}  Qh7 {[%clk 0:02:17]} 15. Qg4 {[%clk 0:02:57]}  Ne7 {[%clk 0:02:15]} 16. f4 {[%clk 0:02:57]}  Nf5 {[%clk 0:02:16]} 17. Nxf5 {[%clk 0:02:55]}  Qxf5 {[%clk 0:02:15]} 18. Qf3 {[%clk 0:02:55]}  Nd7 {[%clk 0:01:50]} 19. g4 {[%clk 0:02:56]}  Qc2 {[%clk 0:01:50]} 20. f5 {[%clk 0:02:55]}  O-O-O {[%clk 0:01:42]} 21. Rbb1 {[%clk 0:02:50]}  Kb7 {[%clk 0:01:17]} 22. Rfc1 {[%clk 0:02:45]}  Qa4 {[%clk 0:01:17]} 23. Nb3 {[%clk 0:02:43]}  Ba3 {[%clk 0:01:15]} 24. Rc3 {[%clk 0:02:33]}  g6 {[%clk 0:00:57]} 25. fxe6 {[%clk 0:02:23]}  fxe6 {[%clk 0:00:58]} 26. hxg6 {[%clk 0:02:24]}  Rhf8 {[%clk 0:00:52]} 27. Qh3 {[%clk 0:02:18]}  Rg8 {[%clk 0:00:49]} 28. g5 {[%clk 0:01:48]}  Rxg6 {[%clk 0:00:46]} 29. Bd2 {[%clk 0:01:47]}  Rdg8 {[%clk 0:00:40]} 30. Qd3 {[%clk 0:01:42]}  Nxe5 {[%clk 0:00:25]} 31. dxe5 {[%clk 0:01:37]}  Rxg5+ {[%clk 0:00:20]} 32. Bxg5 {[%clk 0:01:37]}  Rxg5+ {[%clk 0:00:20]} 33. Kf1 {[%clk 0:01:37]}  Qh4 {[%clk 0:00:19]} 34. Na5+ {[%clk 0:01:22]}  Ka8 {[%clk 0:00:19]} 35. Qh3 {[%clk 0:01:23]}  Rf5+ {[%clk 0:00:18]} 36. Ke2 {[%clk 0:01:04]}  Qe4+ {[%clk 0:00:18]} 37. Qe3 {[%clk 0:00:52]}  Qg2+ {[%clk 0:00:15]} 38. Kd3 {[%clk 0:00:49]}  Rf3 {[%clk 0:00:15]} 39. Re1 {[%clk 0:00:41]}  Qg6+ {[%clk 0:00:13]} 40. Kd2 {[%clk 0:00:38]}  Rxe3 {[%clk 0:00:13]} 41. Rexe3 {[%clk 0:00:38]}  Bb4 {[%clk 0:00:14]} 42. Nxc6 {[%clk 0:00:37]}  Qg2+ {[%clk 0:00:11]} 43. Kd3 {[%clk 0:00:35]}  Bxc3 {[%clk 0:00:10]} 44. Kxc3 {[%clk 0:00:34]}  Qxa2 {[%clk 0:00:11]} 45. Nd8 {[%clk 0:00:28]}  d4+ {[%clk 0:00:11]} 46. Kxd4 {[%clk 0:00:28]}  Qd5+ {[%clk 0:00:12]} 47. Kc3 {[%clk 0:00:29]}  Qxd8 {[%clk 0:00:12]} 0-1


[Site "https://www.chess.com"]

[Event "Titled Tuesday Blitz April 11 Late 2023"]
[White "Chos, Alexey"]
[Black "Bolourchifard, Farzad"]
[WhiteFideId "14117762"]
[BlackFideId "12510084"]
[WhiteElo "2234"]
[BlackElo "2317"]
[Result "1-0"]
[Round "03"]
[TimeControl "180+2"]
[Date "2023.04.11"]
[WhiteClock "0:01:23"]
[BlackClock "0:00:20"]

1. Nf3 {[%clk 0:03:00]}  d5 {[%clk 0:03:00]} 2. g3 {[%clk 0:02:59]}  Nf6 {[%clk 0:02:53]} 3. Bg2 {[%clk 0:02:59]}  Bf5 {[%clk 0:02:53]} 4. O-O {[%clk 0:02:58]}  e6 {[%clk 0:02:53]} 5. d4 {[%clk 0:02:58]}  h6 {[%clk 0:02:52]} 6. c4 {[%clk 0:02:58]}  c6 {[%clk 0:02:52]} 7. Nc3 {[%clk 0:02:59]}  Nbd7 {[%clk 0:02:51]} 8. Nd2 {[%clk 0:02:56]}  Bb4 {[%clk 0:02:41]} 9. Qb3 {[%clk 0:02:54]}  Bxc3 {[%clk 0:02:35]} 10. bxc3 {[%clk 0:02:55]}  Qb6 {[%clk 0:02:28]} 11. Qa3 {[%clk 0:02:48]}  Qd8 {[%clk 0:02:21]} 12. f3 {[%clk 0:02:46]}  Qe7 {[%clk 0:02:12]} 13. Qxe7+ {[%clk 0:02:45]}  Kxe7 {[%clk 0:02:13]} 14. Ba3+ {[%clk 0:02:46]}  Kd8 {[%clk 0:02:13]} 15. e4 {[%clk 0:02:46]}  Bg6 {[%clk 0:02:11]} 16. Rab1 {[%clk 0:02:41]}  b6 {[%clk 0:02:08]} 17. cxd5 {[%clk 0:02:40]}  cxd5 {[%clk 0:02:04]} 18. c4 {[%clk 0:02:39]}  dxe4 {[%clk 0:01:21]} 19. fxe4 {[%clk 0:02:40]}  e5 {[%clk 0:01:21]} 20. Rbd1 {[%clk 0:02:27]}  Kc7 {[%clk 0:01:12]} 21. Nb3 {[%clk 0:02:23]}  Rhe8 {[%clk 0:00:59]} 22. Rfe1 {[%clk 0:02:11]}  Rad8 {[%clk 0:00:58]} 23. d5 {[%clk 0:02:09]}  Kb7 {[%clk 0:00:51]} 24. c5 {[%clk 0:02:08]}  Nxc5 {[%clk 0:00:44]} 25. Bxc5 {[%clk 0:02:06]}  bxc5 {[%clk 0:00:44]} 26. Nxc5+ {[%clk 0:02:07]}  Ka8 {[%clk 0:00:41]} 27. Na6 {[%clk 0:02:00]}  Rc8 {[%clk 0:00:40]} 28. d6 {[%clk 0:02:00]}  Red8 {[%clk 0:00:38]} 29. Nc7+ {[%clk 0:01:58]}  Kb7 {[%clk 0:00:38]} 30. Bf1 {[%clk 0:01:52]}  Rxc7 {[%clk 0:00:20]} 31. Rb1+ {[%clk 0:01:36]}  Kc6 {[%clk 0:00:20]} 32. dxc7 {[%clk 0:01:33]}  Kxc7 {[%clk 0:00:20]} 33. Rec1+ {[%clk 0:01:33]}  Kd7 {[%clk 0:00:20]} 34. Rd1+ {[%clk 0:01:32]}  Ke7 {[%clk 0:00:16]} 35. Rb7+ {[%clk 0:01:31]}  Rd7 {[%clk 0:00:13]} 36. Rdxd7+ {[%clk 0:01:30]}  Nxd7 {[%clk 0:00:14]} 37. Bb5 {[%clk 0:01:31]}  Bxe4 {[%clk 0:00:14]} 38. Rxd7+ {[%clk 0:01:30]}  Ke6 {[%clk 0:00:15]} 39. Rxa7 {[%clk 0:01:31]}  Bd5 {[%clk 0:00:15]} 40. a4 {[%clk 0:01:30]}  f5 {[%clk 0:00:16]} 41. a5 {[%clk 0:01:31]}  e4 {[%clk 0:00:16]} 42. a6 {[%clk 0:01:31]}  Ke5 {[%clk 0:00:17]} 43. Rxg7 {[%clk 0:01:31]}  e3 {[%clk 0:00:17]} 44. a7 {[%clk 0:01:31]}  Ke4 {[%clk 0:00:18]} 45. Re7+ {[%clk 0:01:29]}  Kf3 {[%clk 0:00:18]} 46. Rd7 {[%clk 0:01:27]}  Be4 {[%clk 0:00:17]} 47. Rd8 {[%clk 0:01:25]}  e2 {[%clk 0:00:16]} 48. Bxe2+ {[%clk 0:01:24]}  Kxe2 {[%clk 0:00:17]} 49. a8=Q {[%clk 0:01:24]}  Bxa8 {[%clk 0:00:18]} 50. Rxa8 {[%clk 0:01:25]}  Kf3 {[%clk 0:00:18]} 51. Rh8 {[%clk 0:01:24]}  Kg4 {[%clk 0:00:19]} 52. Rxh6 {[%clk 0:01:24]}  f4 {[%clk 0:00:20]} 53. Rh4+ {[%clk 0:01:23]}  Kf3 {[%clk 0:00:19]} 54. Rxf4+ {[%clk 0:01:23]}  Ke3 {[%clk 0:00:20]} 1-0


[Site "https://www.chess.com"]

[Event "Titled Tuesday Blitz April 11 Late 2023"]
[White "De La Colina, Nicolas"]
[Black "Sargsyan, Shant"]
[WhiteFideId "30946921"]
[BlackFideId "13306766"]
[WhiteElo "2046"]
[BlackElo "2628"]
[Result "1-0"]
[Round "03"]
[TimeControl "180+2"]
[Date "2023.04.11"]
[WhiteClock "0:00:27"]
[BlackClock "0:00:25"]

1. e4 {[%clk 0:03:00]}  b6 {[%clk 0:02:56]} 2. d4 {[%clk 0:03:00]}  Bb7 {[%clk 0:02:57]} 3. Nc3 {[%clk 0:03:01]}  e6 {[%clk 0:02:57]} 4. Bd3 {[%clk 0:03:02]}  Bb4 {[%clk 0:02:57]} 5. Ne2 {[%clk 0:03:02]}  Nf6 {[%clk 0:02:57]} 6. O-O {[%clk 0:03:02]}  O-O {[%clk 0:02:53]} 7. a3 {[%clk 0:02:56]}  Bxc3 {[%clk 0:02:53]} 8. Nxc3 {[%clk 0:02:57]}  d6 {[%clk 0:02:51]} 9. Bg5 {[%clk 0:02:56]}  h6 {[%clk 0:02:51]} 10. Bh4 {[%clk 0:02:56]}  Nbd7 {[%clk 0:02:51]} 11. Re1 {[%clk 0:02:48]}  e5 {[%clk 0:02:51]} 12. Bf1 {[%clk 0:02:43]}  Re8 {[%clk 0:02:50]} 13. dxe5 {[%clk 0:02:34]}  Nxe5 {[%clk 0:02:49]} 14. Bg3 {[%clk 0:02:28]}  Ng6 {[%clk 0:02:47]} 15. f3 {[%clk 0:02:27]}  Nh5 {[%clk 0:02:45]} 16. Bf2 {[%clk 0:02:27]}  Nhf4 {[%clk 0:02:46]} 17. Kh1 {[%clk 0:02:25]}  Qg5 {[%clk 0:02:42]} 18. Qd2 {[%clk 0:02:22]}  Qh5 {[%clk 0:02:36]} 19. Bg3 {[%clk 0:02:16]}  Ne6 {[%clk 0:02:36]} 20. Rad1 {[%clk 0:02:15]}  Rad8 {[%clk 0:02:31]} 21. Bb5 {[%clk 0:02:15]}  c6 {[%clk 0:02:29]} 22. Bc4 {[%clk 0:02:14]}  Ne5 {[%clk 0:02:22]} 23. Be2 {[%clk 0:02:07]}  c5 {[%clk 0:01:47]} 24. f4 {[%clk 0:01:56]}  Ng4 {[%clk 0:01:48]} 25. h3 {[%clk 0:01:49]}  f5 {[%clk 0:01:48]} 26. Kg1 {[%clk 0:01:35]}  Nd4 {[%clk 0:01:46]} 27. hxg4 {[%clk 0:01:30]}  fxg4 {[%clk 0:01:47]} 28. Bc4+ {[%clk 0:01:25]}  Kh8 {[%clk 0:01:48]} 29. Bd5 {[%clk 0:01:25]}  Bxd5 {[%clk 0:01:44]} 30. Nxd5 {[%clk 0:01:26]}  Qf7 {[%clk 0:01:32]} 31. c3 {[%clk 0:01:23]}  Ne6 {[%clk 0:01:28]} 32. f5 {[%clk 0:01:17]}  Ng5 {[%clk 0:01:28]} 33. Qd3 {[%clk 0:01:11]}  Nh7 {[%clk 0:01:16]} 34. Nf4 {[%clk 0:01:07]}  Nf8 {[%clk 0:01:16]} 35. Bh4 {[%clk 0:01:05]}  Rd7 {[%clk 0:01:15]} 36. Qd5 {[%clk 0:01:02]}  g5 {[%clk 0:01:05]} 37. Qxf7 {[%clk 0:00:54]}  Rxf7 {[%clk 0:01:05]} 38. Ng6+ {[%clk 0:00:55]}  Nxg6 {[%clk 0:01:02]} 39. fxg6 {[%clk 0:00:56]}  Rd7 {[%clk 0:01:02]} 40. Bg3 {[%clk 0:00:55]}  Re6 {[%clk 0:01:03]} 41. Rd5 {[%clk 0:00:53]}  Kg7 {[%clk 0:01:02]} 42. e5 {[%clk 0:00:49]}  h5 {[%clk 0:01:01]} 43. exd6 {[%clk 0:00:44]}  Rxe1+ {[%clk 0:01:01]} 44. Bxe1 {[%clk 0:00:45]}  Kxg6 {[%clk 0:01:02]} 45. Bd2 {[%clk 0:00:45]}  Kf6 {[%clk 0:00:59]} 46. Bxg5+ {[%clk 0:00:44]}  Ke6 {[%clk 0:00:59]} 47. c4 {[%clk 0:00:44]}  Rxd6 {[%clk 0:00:59]} 48. Rxd6+ {[%clk 0:00:45]}  Kxd6 {[%clk 0:01:00]} 49. Bf4+ {[%clk 0:00:42]}  Ke6 {[%clk 0:01:00]} 50. Kf2 {[%clk 0:00:43]}  Kf5 {[%clk 0:01:01]} 51. Ke3 {[%clk 0:00:43]}  h4 {[%clk 0:01:00]} 52. Bb8 {[%clk 0:00:38]}  h3 {[%clk 0:00:55]} 53. gxh3 {[%clk 0:00:37]}  gxh3 {[%clk 0:00:56]} 54. Kf3 {[%clk 0:00:36]}  a6 {[%clk 0:00:48]} 55. a4 {[%clk 0:00:34]}  Ke6 {[%clk 0:00:38]} 56. Bc7 {[%clk 0:00:31]}  b5 {[%clk 0:00:25]} 57. cxb5 {[%clk 0:00:30]}  axb5 {[%clk 0:00:26]} 58. axb5 {[%clk 0:00:30]}  Kd5 {[%clk 0:00:26]} 59. b6 {[%clk 0:00:27]}  Kc6 {[%clk 0:00:26]} 60. Kg3 {[%clk 0:00:26]}  h2 {[%clk 0:00:24]} 61. Kxh2 {[%clk 0:00:26]}  c4 {[%clk 0:00:24]} 62. Kg2 {[%clk 0:00:26]}  Kb7 {[%clk 0:00:25]} 63. Kf2 {[%clk 0:00:26]}  c3 {[%clk 0:00:25]} 64. bxc3 {[%clk 0:00:27]} 1-0


[Site "https://www.chess.com"]

[Event "Titled Tuesday Blitz April 11 Late 2023"]
[White "Durarbayli, Vasif"]
[Black "Levitskiy, Andrey"]
[WhiteFideId "13402935"]
[BlackFideId "14132885"]
[WhiteElo "2551"]
[BlackElo "2341"]
[Result "1-0"]
[Round "03"]
[TimeControl "180+2"]
[Date "2023.04.11"]
[WhiteClock "0:01:10"]
[BlackClock "0:00:01"]

1. e4 {[%clk 0:03:00]}  e6 {[%clk 0:03:00]} 2. d4 {[%clk 0:03:00]}  d5 {[%clk 0:03:00]} 3. e5 {[%clk 0:03:01]}  c5 {[%clk 0:03:00]} 4. c3 {[%clk 0:03:02]}  Qb6 {[%clk 0:03:01]} 5. Nf3 {[%clk 0:03:02]}  Nc6 {[%clk 0:03:02]} 6. Be2 {[%clk 0:03:02]}  cxd4 {[%clk 0:03:00]} 7. cxd4 {[%clk 0:03:03]}  Bd7 {[%clk 0:02:59]} 8. O-O {[%clk 0:03:02]}  Nge7 {[%clk 0:02:57]} 9. Na3 {[%clk 0:03:02]}  Nf5 {[%clk 0:02:54]} 10. Nc2 {[%clk 0:03:02]}  Nb4 {[%clk 0:02:53]} 11. Nxb4 {[%clk 0:02:57]}  Bxb4 {[%clk 0:02:54]} 12. a3 {[%clk 0:02:57]}  Be7 {[%clk 0:02:53]} 13. Kh1 {[%clk 0:02:55]}  Rc8 {[%clk 0:02:48]} 14. g4 {[%clk 0:02:54]}  Nh4 {[%clk 0:02:32]} 15. Nxh4 {[%clk 0:02:51]}  Bxh4 {[%clk 0:02:33]} 16. g5 {[%clk 0:02:51]}  h6 {[%clk 0:01:32]} 17. gxh6 {[%clk 0:02:42]}  g6 {[%clk 0:01:33]} 18. Be3 {[%clk 0:02:36]}  Bb5 {[%clk 0:01:25]} 19. Bxb5+ {[%clk 0:02:10]}  Qxb5 {[%clk 0:01:25]} 20. Qg4 {[%clk 0:02:04]}  Be7 {[%clk 0:01:20]} 21. b4 {[%clk 0:02:04]}  O-O {[%clk 0:00:27]} 22. h4 {[%clk 0:02:02]}  Kh7 {[%clk 0:00:28]} 23. Bg5 {[%clk 0:02:00]}  Rc7 {[%clk 0:00:16]} 24. Rfc1 {[%clk 0:01:48]}  Rfc8 {[%clk 0:00:15]} 25. Rxc7 {[%clk 0:01:48]}  Rxc7 {[%clk 0:00:16]} 26. Qf3 {[%clk 0:01:43]}  Bf8 {[%clk 0:00:10]} 27. Kg2 {[%clk 0:01:39]}  Qe8 {[%clk 0:00:05]} 28. Qf4 {[%clk 0:01:35]}  Rc4 {[%clk 0:00:04]} 29. Rd1 {[%clk 0:01:30]}  b5 {[%clk 0:00:04]} 30. Rd3 {[%clk 0:01:31]}  a6 {[%clk 0:00:03]} 31. Rf3 {[%clk 0:01:31]}  Rc7 {[%clk 0:00:04]} 32. h5 {[%clk 0:01:29]}  gxh5 {[%clk 0:00:02]} 33. Qe3 {[%clk 0:01:24]}  Be7 {[%clk 0:00:02]} 34. Qd3+ {[%clk 0:01:23]}  Kh8 {[%clk 0:00:03]} 35. Rf6 {[%clk 0:01:21]}  Qg8 {[%clk 0:00:02]} 36. Qg3 {[%clk 0:01:17]}  Bxf6 {[%clk 0:00:02]} 37. Bxf6+ {[%clk 0:01:18]}  Kh7 {[%clk 0:00:03]} 38. Bg7 {[%clk 0:01:19]}  f5 {[%clk 0:00:01]} 39. exf6 {[%clk 0:01:17]}  Rxg7 {[%clk 0:00:01]} 40. Qxg7+ {[%clk 0:01:10]}  Qxg7+ {[%clk 0:00:01]} 41. hxg7 {[%clk 0:01:11]}  Kg8 {[%clk 0:00:01]} 42. f4 {[%clk 0:01:11]}  Kf7 {[%clk 0:00:02]} 43. Kh3 {[%clk 0:01:11]}  Kxf6 {[%clk 0:00:01]} 44. g8=Q {[%clk 0:01:10]} 1-0


[Site "https://www.chess.com"]